Cogmind - Beta 16 @@@ ROGUE MODE // 2025.11.16 @ 17:37:34 Player: Boom Result: Destroyed by Autobeam Turret with Autobeam Performance ------------- Evolutions (0) 0 Regions Visited (3) 600 Robots Destroyed (21) 105 Value Destroyed (686) 686 Prototype IDs (2) 40 Alien Tech Used (0) 0 Bonus (0) 0 TOTAL SCORE: 1431 Bonus ------- None Cogmind --------- Core Integrity 0/250 Matter 96/300 Energy 250/250 System Corruption 1% Temperature Cool (12) Movement Core (300) Ox5 Location -10/Subcaves Parts ------- > --- POWER (1) -------- Ion Engine > --- PROPULSION (2) --- (None) > --- UTILITY (2) ------ Heat Sink Medium Storage Unit > --- WEAPON (2) ------- Medium Laser > --- INVENTORY (10) --- Small Storage Unit Small Matter Pod (50) Experimental Sensor Array Peak State ------------ > --- POWER ------------ Light Nuclear Core > --- PROPULSION ------- Aluminum Leg Aluminum Leg > --- UTILITY ---------- Improved Heat Sink Medium Storage Unit > --- WEAPON ----------- Assault Rifle Rocket Launcher > --- INVENTORY -------- Ion Engine Aluminum Leg Heat Sink Small Storage Unit Small Matter Pod Experimental Sensor Array Light Armor Plating Medium Laser Assault Rifle [Rating: 13] Favorites ----------- Power Ion Engine Engine Ion Engine Power Core Light Nuclear Core Propulsion Aluminum Leg Leg Aluminum Leg Utility Medium Storage Unit Device Heat Sink Storage Medium Storage Unit Protection Light Armor Plating Weapon Assault Rifle Energy Gun Medium Laser Ballistic Gun Assault Rifle Launcher Rocket Launcher Build | -11 -10 -10 -10 ------- Run | Yrd Mat Min Sub Slots Evolved . | . . . . Power . | . . . . Propulsion . | . . . . Utility . | . . . . Weapon . | . . . . Parts Attached 18 | 6 3 4 5 Power 3 | 1 . 1 1 Engine 2 | 1 . . 1 Core 1 | . . 1 . Reactor . | . . . . Propulsion 5 | 2 . 1 2 Treads . | . . . . Leg 5 | 2 . 1 2 Wheel . | . . . . Hover . | . . . . Flight . | . . . . Utility 5 | 1 1 2 1 Device 2 | . 1 1 . Storage 2 | 1 . 1 . Processor . | . . . . Hackware . | . . . . Protection 1 | . . . 1 Artifact . | . . . . Weapon 5 | 2 2 . 1 Energy Gun 1 | 1 . . . Energy Cannon . | . . . . Ballistic Gun 3 | 1 2 . . Ballistic Cannon . | . . . . Launcher 1 | . . . 1 Special Weapon . | . . . . Impact Weapon . | . . . . Slashing Weapon . | . . . . Piercing Weapon . | . . . . Special Melee Weapon . | . . . . Unidentified Prototypes . | . . . . Parts Lost 11 | . . 1 10 Power 2 | . . 1 1 Propulsion 4 | . . . 4 Utility 2 | . . . 2 Weapon 3 | . . . 3 Highest Loss Streak 5 | . . 1 5 To Critical Strikes . | . . . . Average Backups 6 | 2 6 8 5 Power . | . 1 1 . Propulsion 1 | 1 2 2 . Utility 3 | . . 3 4 Weapon . | . 1 1 . Tool/Special . | . . . . Unused Backups 6 | . 3 1 2 Power 1 | . 1 . . Propulsion 2 | . 2 . . Utility 2 | . . . 2 Weapon 1 | . . 1 . Tool/Special . | . . . . Average Slot Usage (%) 91 | . 92 99 88 Engine 10 | . 14 12 9 Core 3 | . . . 4 Leg 20 | . 28 28 18 Device 6 | . 7 14 4 Storage 14 | . 14 14 14 Protection 6 | . . . 8 Energy Gun 8 | . 12 . 9 Ballistic Gun 12 | . 15 28 8 Launcher 7 | . . . 10 Peak Build Rating 13 | 6 7 12 13 Average Rating 8 | 4 6 8 9 On Entrance 6 | . 6 7 12 Avg Prop Armor Cover (%) . | . . . . Naked Turns . | . . . . Heaviest Build 24 | 13 15 20 24 Greatest Support 20 | 20 20 20 20 Greatest Overweight (x) 5 | . . . 5 Average Overweight (x) . | . . . 1 Largest Inventory Capacity 10 | 8 8 10 10 Average Capacity 9 | 6 8 8 10 Most Carried 10 | 4 8 10 10 Average Carried 6 | 1 6 8 5 Final Capacity 10 | 8 8 10 10 Final Carried 10 | 4 8 10 3 Class Distribution -------------------- 79% | Mutant 20% | Scavenger-Mutant Dominant Class ---------------- Mutant | -10/Materials Mutant | -10/Mines Mutant | -10/Subcaves Resources | -11 -10 -10 -10 ----------- Run | Yrd Mat Min Sub Matter Collected 698 | 151 212 84 251 Remotely . | . . . . Salvage Created 729 | . 248 142 339 Parts 47 | . 17 7 23 Haulers Intercepted 1 | . 1 . . Recyclers Shooed 1 | . . 1 . Parts Field Recycled . | . . . . Retrieved Matter . | . . . . Parts Self-Destructed 8 | . . . 8 Prevented . | . . . . Parts Restored . | . . . . Kills | -11 -10 -10 -10 ------- Run | Yrd Mat Min Sub Combat Hostiles Destroyed 17 | . 2 3 12 Guns 9 | . 2 3 4 AOE 8 | . . . 8 Classes Destroyed 8 | . 5 . 3 Worker 1 | . 1 . . Hauler 1 | . 1 . . Recycler 1 | . 1 . . Watcher 1 | . 1 . . Swarmer 1 | . . . 1 Grunt 5 | . 2 3 . Sentry 1 | . . . 1 Subdweller 10 | . . . 10 Best Kill Streak 3 | . 2 2 3 Combat Bots Only 3 | . 2 2 3 Max Kills in Single Turn 1 | . 1 1 1 Gunslinging . | . . . . Exploded 1 | . . . 1 Melee . | . . . . Uniques/NPCs Destroyed . | . . . . Combat | -11 -10 -10 -10 -------- Run | Yrd Mat Min Sub Hostile Shots Fired 110 | . 8 13 89 Missed 39 | . 2 4 33 Hits 71 | . 6 9 56 Projectile 71 | . 6 9 56 AOE 2 | . . . 2 Damage Taken 1418 | . 149 138 1131 Core 252 | . 27 28 197 Absorbed by Shields . | . . . . Core Remaining (%) 100 | 100 . . . Volleys Fired 88 | 2 23 12 51 Largest 2 | 2 2 2 2 Hottest 83 | 70 70 40 83 Shots Fired 149 | 4 46 24 75 Gun 125 | 4 46 24 51 Cannon . | . . . . Launcher 24 | . . . 24 Special . | . . . . Kinetic 86 | 2 23 24 37 Thermal 39 | 2 23 . 14 Explosive 24 | . . . 24 Electromagnetic . | . . . . Robot Hit Streak 19 | 3 7 12 19 Robot Miss Streak 3 | 1 3 3 3 Penetration Max . | . . . . Secondary Targets 1 | . . . 1 Max Gunslinging Chain 1 | . . . 1 Shots Hit Robots 96 | 3 28 17 48 Core Hits 38 | 1 11 8 18 Critical Kills . | . . . . Critical Parts Destroyed 1 | . 1 . . Critical Strikes 4 | . 4 . . Burn 3 | . 3 . . Destroy 1 | . 1 . . Melee Attacks . | . . . . Impact . | . . . . Slashing . | . . . . Piercing . | . . . . Sneak Attacks . | . . . . Combat Hostiles . | . . . . Follow-up Attacks . | . . . . Damage Inflicted 1814 | 30 297 204 1283 Guns 1024 | 30 293 204 497 Cannons . | . . . . Explosions 786 | . . . 786 Melee . | . . . . Ramming 4 | . 4 . . Kinetic 713 | 17 120 204 372 Thermal 311 | 13 173 . 125 Explosive 786 | . . . 786 Electromagnetic . | . . . . Impact . | . . . . Slashing . | . . . . Piercing . | . . . . Highest Corruption 1 | . 1 1 1 Average Corruption 1 | . 1 1 1 Corruption Purged . | . . . . Corruption Blocked . | . . . . Effects 20 | . 1 4 15 Message Errors 7 | . 1 2 4 Matter Fused 3 | . . . 3 Heat Flow Errors 2 | . . 1 1 Energy Discharges 4 | . . 1 3 Data Loss (minor) 3 | . . . 3 Data Loss (major) 1 | . . . 1 Overload Shots . | . . . . Overflow Damage 1 | . . . 1 Projectiles . | . . . . Explosions 1 | . . . 1 Melee . | . . . . Knockbacks . | . . . . Impact . | . . . . Kinetic . | . . . . Secondary . | . . . . Self-Inflicted Damage 87 | . . . 87 Shots 4 | . . . 4 Rammed . | . . . . Targets Rammed 1 | . 1 . . Kicked 1 | . 1 . . Crushed . | . . . . Highest Temperature 182 | 30 98 101 182 Average Temperature 30 | 18 24 58 107 Received Heat Transfer 342 | . 36 78 228 Siege Activations . | . . . . Martial Activations . | . . . . Shielding Activations . | . . . . Robots Disrupted . | . . . . Combat Hostiles . | . . . . Robots Corrupted . | . . . . Combat Hostiles . | . . . . Parts Fried . | . . . . Impact Corruptions . | . . . . Robots Melted . | . . . . Combat Hostiles . | . . . . Parts Melted 2 | . 2 . . Heat Transferred 1147 | 37 740 . 370 Parts Sabotaged . | . . . . Parts Stolen . | . . . . Parts Stripped . | . . . . Power Chain Reactions . | . . . . Alert | -11 -10 -10 -10 ------- Run | Yrd Mat Min Sub Maximum Alert Level . | . . . . Low Security (%) 100 | 100 100 100 . Level 1 . | . . . . Level 2 . | . . . . Level 3 . | . . . . Level 4 . | . . . . Level 5 . | . . . . High Security . | . . . . Max Security . | . . . . Peak Influence 47 | . 40 47 . Initial . | . . . . Average 6 | . 5 9 . Influence Increases 279 | . 69 110 100 Destroy 0b10 Robot/C 140 | . 40 60 40 Destroy 0b10 Robot/NC 20 | . 20 . . Destroy Leader 24 | . 4 20 . Successful Hack 5 | . 5 . . Disable Machine 15 | . . 15 . Lose Combat Pursuer 75 | . . 15 60 Influence Decreases 225 | . 69 79 77 Entered New Map 17 | . . . 17 Time Decay 178 | . 69 69 40 Lost Part 30 | . . 10 20 Squads Dispatched 1 | . 1 . . Investigation . | . . . . Extermination . | . . . . Reinforcement 1 | . 1 . . Assault . | . . . . Garrison . | . . . . Intercept . | . . . . Searches Triggered . | . . . . Construction Impeded . | . . . . Haulers Reinforced . | . . . . Active Scanning Responses . | . . . . Cargo Convoy Interrupts . | . . . . Stealth | -11 -10 -10 -10 --------- Run | Yrd Mat Min Sub Distress Signals . | . . . . Communications Jammed . | . . . . Distress Signals . | . . . . Times Spotted 26 | . 5 4 17 Peak Tracking Total 5 | . 2 2 5 Tactical Retreats 3 | . . 1 2 Traps | -11 -10 -10 -10 ------- Run | Yrd Mat Min Sub Traps Triggered 2 | . 2 . . Indirectly . | . . . . Trap Hack Attempts . | . . . . Triggered . | . . . . Disarmed . | . . . . Reprogrammed . | . . . . Reused . | . . . . Traps Extracted . | . . . . Installed . | . . . . Triggered . | . . . . Machines | -11 -10 -10 -10 ---------- Run | Yrd Mat Min Sub Machines Disabled 1 | . . 1 . Max in Single Turn 1 | . . 1 . Machines Repaired . | . . . . Machines Dismantled . | . . . . Machines Sabotaged . | . . . . Overloaded Fab Kills . | . . . . Hacking | -11 -10 -10 -10 --------- Run | Yrd Mat Min Sub Machines Accessed 1 | . 1 . . Terminals 1 | . 1 . . Fabricators . | . . . . Repair Stations . | . . . . Recycling Units . | . . . . Scanalyzers . | . . . . Garrison Access . | . . . . Total Hacks 2 | . 2 . . Successful 1 | . 1 . . Failed 1 | . 1 . . Catastrophic . | . . . . Database Lockouts . | . . . . Manual . | . . . . Terminals 2 | . 2 . . Fabricators . | . . . . Repair Stations . | . . . . Recycling Units . | . . . . Scanalyzers . | . . . . Garrison Access . | . . . . Terminal Hacks 1 | . 1 . . Prototype ID Bank 1 | . 1 . . Fabricator Hacks . | . . . . Repair Station Hacks . | . . . . Recycling Unit Hacks . | . . . . Scanalyzer . | . . . . Garrison Access Hacks . | . . . . Unauthorized Hacks . | . . . . Terminals . | . . . . Fabricators . | . . . . Repair Stations . | . . . . Recycling Units . | . . . . Scanalyzers . | . . . . Garrison Access . | . . . . Data Cores Recovered . | . . . . Used . | . . . . Hacking Detections 1 | . 1 . . Full Trace Events . | . . . . Feedback Events . | . . . . Feedback Blocked . | . . . . Robot Schematics Acquired . | . . . . Robots Built . | . . . . Authchips . | . . . . Time . | . . . . Total Robot Build Rating . | . . . . Part Schematics Acquired . | . . . . Parts Built . | . . . . Authchips . | . . . . Time . | . . . . Total Part Build Rating . | . . . . Part Studies Acquired . | . . . . Parts Repaired . | . . . . Time . | . . . . Parts Recycled . | . . . . Recycled Matter . | . . . . Retrieved Matter . | . . . . Retrieved Components . | . . . . Parts Scanalyzed . | . . . . Part Schematics Acquired . | . . . . Parts Damaged . | . . . . Bothacking | -11 -10 -10 -10 ------------ Run | Yrd Mat Min Sub Used RIF Installer . | . . . . Robots Hacked . | . . . . Non-combat . | . . . . Combat . | . . . . Robot Hacks Applied . | . . . . Relay Couplers Released . | . . . . Fabnet Peak Effective % . | . . . . Robots Rewired . | . . . . Allies Hacked . | . . . . Hacks Repelled . | . . . . Allies | -11 -10 -10 -10 -------- Run | Yrd Mat Min Sub Total Allies . | . . . . Largest Group . | . . . . Highest-Rated Group . | . . . . Highest-Rated Ally . | . . . . Total Orders . | . . . . Ally Attacks . | . . . . Total Damage . | . . . . Kills . | . . . . Allies Corrupted . | . . . . Allies Melted . | . . . . Intel | -11 -10 -10 -10 ------- Run | Yrd Mat Min Sub Active Infowar (turns) . | . . . . Robot Analysis Total . | . . . . Derelict Logs Recovered 2 | . . 2 . Drone Launches . | . . . . Drone Recoveries . | . . . . Exploration | -11 -10 -10 -10 ------------- Run | Yrd Mat Min Sub Turns Passed 3017 | 65 368 443 2141 Spaces Moved 1549 | 44 198 309 998 Core 17 | 13 . . 4 Treads . | . . . . Legs 1532 | 31 198 309 994 Wheels . | . . . . Hover . | . . . . Flight . | . . . . Fastest Speed 50 | 50 120 120 120 Average Speed 170 | 99 120 120 199 Slowest Speed 300 | 120 120 120 300 Overloaded Moves . | . . . . Propulsion Burnouts . | . . . . Robots Hopped . | . . . . Potential Cave-ins . | . . . . Cave-ins Triggered 1 | . . . 1 Exploration Rate (%) 39 | 4 41 60 51 Regions Visited 3 Branch Regions 2 Pre-discovered Areas 2 | . . 2 . Known Exits Taken . | . . . . Unknown Exits Taken 3 | 1 1 1 . Scrap Searched 1 | . . 1 . Spaces Dug 14 | . . . 14 Terrain Destroyed 169 | . . . 169 Melee . | . . . . Projectile . | . . . . AOE 169 | . . . 169 Terrain Rammed . | . . . . Walls Destroyed . | . . . . Machines Disabled . | . . . . Actions | -11 -10 -10 -10 --------- Run | Yrd Mat Min Sub Total 1783 | 61 288 358 1076 Wait 95 | . 52 24 19 Move 1546 | 43 197 308 998 Hop . | . . . . Pick Up 24 | 10 8 6 . Fast Attach . | . . . . Attach 15 | 6 1 1 7 Detach . | . . . . Swap 6 | . 2 3 1 Drop 8 | . 4 4 . Fire 88 | 2 23 12 51 Melee . | . . . . Ram . | . . . . Kick 1 | . 1 . . Crush . | . . . . Escape Stasis . | . . . . Rewire . | . . . . Trap . | . . . . Miscellaneous . | . . . . Route ------- -11/Scrapyard -10/Materials -10/Mines -10/Subcaves (discovered 1 exit: [*Rec]) History --------- Turn | Location | Event 4 | -11/Scrapyard | Discovered new exit (range 15) 66 | -11/Scrapyard | Entered Materials 311 | -10/Materials | Build established: Mutant 426 | -10/Materials | Discovered new exit (range 7) 434 | -10/Materials | Entered Mines 440 | -10/Mines | Learned location of Mines (-9) 445 | -10/Mines | Met a Derelict bent on vengeance 468 | -10/Mines | Found a damaged Exp. Sensor Array with a note attached 471 | -10/Mines | Found Prototype Device 706 | -10/Mines | Received a Rocket Launcher from a helpful Derelict 803 | -10/Mines | A weapon hastily lodged in a ceiling crevice suddenly fell to the ground 871 | -10/Mines | Discovered new exit (range 5) 877 | -10/Mines | Entered Subcaves 1145 | -10/Subcaves | Build established: Scavenger-Mutant 1186 | -10/Subcaves | Shifting Twisted Machinery released Ripper 1211 | -10/Subcaves | Shifting Twisted Machinery released Sub. Beam Cannon 1467 | -10/Subcaves | Core integrity fell below 50% 1470 | -10/Subcaves | Ambushed by Subdweller buried in earth 1566 | -10/Subcaves | Lost 5 parts (1p2n2w) 1769 | -10/Subcaves | Build established: Mutant 2167 | -10/Subcaves | A swath of the cavern ceiling suddenly collapsed 2630 | -10/Subcaves | Ambushed by Subdweller buried in earth 2632 | -10/Subcaves | Ambushed by Subdweller buried in earth 2634 | -10/Subcaves | Ambushed by Subdweller buried in earth 2706 | -10/Subcaves | Crushed by falling debris 2938 | -10/Subcaves | Shifting Twisted Machinery released Sub. Beam Cannon 2971 | -10/Subcaves | Discovered new exit (range 13) 2990 | -10/Subcaves | Core integrity fell below 20% 3018 | -10/Subcaves | Destroyed by Autobeam Turret with Autobeam Last Messages --------------- 02707_ The unstable cave ceiling collapses. 02709_ System corrupted: Component data lost. 02710_ Acquired 14 matter. 02712_ Subatomizers dissect the Disposable Heat Sink. 02727_ System corrupted: Matter fused (-7). 02728_ The unstable cave ceiling collapses. 02874_ Lgt. Armor Plating destroyed. 02874_ Destroyed Lgt. Armor Plating. 02936_ System corrupted: Heat flow error (+232). Sub. Beam Cannon falls loose from the Twisted Machinery. 02971_ EXIT=FOUND 02974_ Acquired 39 matter. 02975_ S-10 Pest destroyed. 02988_ Rocket Launcher destroyed. 03002_ Aluminum Leg destroyed. 03004_ S-10 Pest destroyed. 03008_ Flight Unit fries itself beyond repair. 03009_ Acquired 18 matter. Map ----- +----------------------------------------------------+ | ????????????????????# # #""##"# ##### ## | | ????????????????????# "# #""""# ## ###? | | ????????????????????# ###" #"#"# " #??? | | ????????????????????##??#" #""### # #??? | | ???????????????????????? #"#####"" #"# ##??? | | ???????????????????????? #????###" " # ###???? | | ???????????????????????? ??????#### # # #????? | | ???????????????????????? ??????#"" ##????? | | ???????????????????????? ?????#"#" ##?????? | | ???????????????????????? #???????#"# #??????? | | ??????????????????????????????????# #??????? | | ???????????????????????##?????????## #??????? | | ???????????????????#####